[Event "44th Indian Team Championship 2025"]
[Site "Gujarat"]
[Date "2025.03.06"]
[Round "2.1"]
[White "Samarth Sreeni Warrier"]
[Black "Nitin, S.."]
[Result "1-0"]
[Annotator "TA"]
[ECO "E90"]
[WhiteElo "1913"]
[BlackElo "2349"]
[PlyCount "69"]
[EventDate "2025.03.03"]
[EventCountry "IND"]
[SourceTitle "playchess.com"]
[Source "ChessBase"]
[SourceQuality "1"]
[TimeControl "5400+30"]

{[%evp 17,69,17,32,39,66,76,125,139,132,138,139,137,136,129,192,192,236,221,415,438,444,447,472,479,675,666,634,437,443,460,433,336,317,302,479,297,291,294,371,241,216,0,393,367,649,631,621,568,871,862,853,842,833,818]} 1. d4 {[%emt 0:02:25]} Nf6 {[%emt 0:00:36]} 2. Nf3 {[%emt 0:00:12]} g6 {[%emt 0:00:27]} 3. c4 {[%emt 0:00:09]} Bg7 {[%emt 0:00:07]} 4. Nc3 {[%emt 0:00:24]} O-O {[%emt 0:00:09]} 5. e4 {[%emt 0:00:04]} d6 {[%emt 0:00:06]} 6. h3 {[%emt 0:00:06]} Na6 {[%emt 0:02:19]} 7. Bg5 {[%emt 0:00:06]} Qe8 {[%emt 0:03:36]} 8. Be2 {[%emt 0:03:38]} e5 {[%emt 0:00:23]} 9. d5 {[%emt 0:03:34]} Nh5 {[%emt 0:02:37]} 10. g3 {[%emt 0:01:23] E90: King's Indian: Classical: Early deviations and 6 h3.} h6 {[%emt 0:05:03]} 11. Be3 {[%emt 0:07:36]} f5 {[%emt 0:08:51]} ({Black should play} 11... Nf6) 12. exf5 $16 {[%emt 0:00:10] White is better.} gxf5 {[%emt 0:00:22]} 13. Nh4 $1 {[%emt 0:01:34]} Nf6 {[%emt 0:00:54]} 14. Rg1 {[%emt 0:08:03] White is much more active.} Nc5 $146 {[%emt 0:03:18]} (14... Bd7 15. Qd2 Kh7 16. a3 Nc5 17. Qc2 e4 18. g4 fxg4 19. hxg4 Nxg4 20. Bxc5 dxc5 21. Bxg4 Bxg4 22. Rxg4 Bd4 23. Rxe4 {1-0 Moreira,R (2057)-Dibai,J (1678) Pocos de Caldas op 2018 (1)}) 15. Qc2 $1 {[%emt 0:08:29][%cal Og3g4]} Nh7 {[%emt 0:08:34]} (15... Nfe4 $16) 16. g4 $18 {[%emt 0:14:24]} fxg4 {[%emt 0:03:54]} 17. Bxg4 {[%emt 0:02:31]} (17. hxg4 $6 e4 $16) 17... Rf4 $2 {[%emt 0:12:21]} (17... Ng5 18. b4 Na6) 18. Bxf4 {[%emt 0:03:34]} exf4+ {[%emt 0:00:11]} 19. Kf1 {[%emt 0:01:34]} Bxg4 {[%emt 0:15:06]} 20. Rxg4 {[%emt 0:02:23][%cal Oa1e1]} ({Not} 20. hxg4 Nd7 21. Nf5 Ng5 $18) 20... Ng5 {[%emt 0:04:03]} (20... Nf6 $142 21. Rxf4 (21. Re1 Qh5 $18) 21... Nh5) 21. Re1 {[%emt 0:05:20]} Qf7 {[%emt 0:06:44]} 22. Ng6 {[%emt 0:06:16]} Re8 {[%emt 0:03:26] Repels Re7} 23. Rxe8+ {[%emt 0:01:12]} (23. Nxf4 Rxe1+ 24. Kxe1 Nf3+ 25. Kd1 Ne5 $11 (25... h5 26. Rxg7+ Qxg7 27. Nce2 $16)) 23... Qxe8 {[%emt 0:00:05]} 24. Rxf4 {[%emt 0:03:30] Strongly threatening h4.} Nxh3 {[%emt 0:01:40]} 25. Rf3 {[%emt 0:02:59]} Qd7 {[%emt 0:03:40]} (25... Ng5 {might work better.} 26. Re3 Qf7 27. Ne7+ Kf8) 26. Nf8 {[%emt 0:02:21]} Bxf8 {[%emt 0:00:41]} 27. Qg6+ {[%emt 0:00:52]} Bg7 {[%emt 0:00:07]} 28. Re3 {[%emt 0:00:18]} Kf8 {[%emt 0:01:25] [#] Prevents Re8+} 29. Rf3+ {[%emt 0:01:03]} (29. b4 $1 {[%cal Rb4c5]} Nf4 30. Rf3 Qh3+ 31. Rxh3 Nxg6 32. bxc5 Bxc3 33. Rxc3 dxc5 34. Rh3) 29... Kg8 {[%emt 0:00:06] [#]} 30. b4 $1 {[%emt 0:04:02]} Nf4 $2 {[%emt 0:02:10]} (30... Ng5 31. Re3 Nf7 32. bxc5 Ne5 33. Qe6+ Qxe6 34. dxe6 Ng4) 31. Rxf4 {[%emt 0:03:01] White is clearly winning.} Qh3+ {[%emt 0:00:06]} 32. Ke2 {[%emt 0:00:16]} Nd7 {[%emt 0:02:07]} 33. Qe6+ {[%emt 0:00:19]} Qxe6+ {[%emt 0:00:21]} 34. dxe6 {[%emt 0:00:01]} Nf6 {[%emt 0:00:08]} 35. Nd5 {[%emt 0:00:11] Weighted Error Value: White=0.48/Black=1.00  Mistake:       	White=1     	Black=6      Inaccurate:     	White=2     	Black=1      OK:         	White=8     	Black=4      Best:        	White=2     	Black=4      Strong:       	White=3     	---} 1-0

[Event "44th Indian Team Championship 2025"]
[Site "Gujarat"]
[Date "2025.03.06"]
[Round "2.2"]
[White "Neelash Saha"]
[Black "Jani Kushal R"]
[Result "1-0"]
[Annotator "RC"]
[ECO "A13"]
[WhiteElo "2460"]
[BlackElo "2270"]
[PlyCount "91"]
[EventDate "2025.03.03"]
[EventCountry "IND"]
[SourceTitle "playchess.com"]
[Source "ChessBase"]
[SourceQuality "1"]
[TimeControl "5400+30"]

1. Nf3 {[%emt 0:02:30]} d5 {[%emt 0:02:21]} 2. e3 {[%emt 0:00:00]} Nf6 {[%emt 0:00:09]} 3. c4 {[%emt 0:00:00]} e6 {[%emt 0:00:08]} 4. b3 {[%emt 0:00:00]} Bd6 {[%emt 0:00:35]} 5. Be2 {[%emt 0:02:21]} Nbd7 {[%emt 0:00:43]} 6. cxd5 {[%emt 0:00:49]} exd5 {[%emt 0:00:16]} 7. Ba3 {[%emt 0:00:05]} c5 {[%emt 0:09:07]} 8. O-O {[%emt 0:01:13]} O-O {[%emt 0:00:30]} 9. d4 {[%emt 0:02:36]} b6 {[%emt 0:01:05]} 10. Nc3 {[%emt 0:02:30]} Bb7 {[%emt 0:00:23]} 11. Rc1 {[%emt 0:00:11]} a6 {[%emt 0:06:32]} 12. Rc2 {[%emt 0:06:06]} Qe7 {[%emt 0:03:54]} 13. Qb1 {[%emt 0:13:53]} Rac8 {[%emt 0:03:53]} 14. Rd1 {[%emt 0:02:37]} Rfe8 {[%emt 0:08:07]} 15. Bf1 {[%emt 0:07:51]} Ne4 {[%emt 0:10:20]} 16. dxc5 {[%emt 0:01:49]} Nxc3 {[%emt 0:00:28]} 17. Rxc3 {[%emt 0:00:07]} bxc5 {[%emt 0:01:34]} 18. Qf5 {[%emt 0:04:00]} Nf6 {[%emt 0:02:42]} 19. Bb2 {[%emt 0:02:18]} Ne4 {[%emt 0:02:38]} 20. Rc2 {[%emt 0:01:07]} g6 {[%emt 0:06:51]} 21. Qh3 {[%emt 0:00:40]} h5 {[%emt 0:03:14]} 22. Qh4 {[%emt 0:02:19]} Qe6 {[%emt 0:00:58]} 23. Bd3 {[%emt 0:14:10]} Be7 {[%emt 0:10:50]} 24. Qf4 {[%emt 0:01:03]} g5 {[%emt 0:03:40]} 25. Qe5 {[%emt 0:00:10]} Qxe5 {[%emt 0:00:06]} 26. Nxe5 {[%emt 0:02:10]} Bf6 {[%emt 0:04:18]} 27. Bxe4 {[%emt 0:02:31]} Bxe5 {[%emt 0:00:42]} 28. Bxd5 {[%emt 0:01:41]} Rcd8 {[%emt 0:05:45]} 29. Bxe5 {[%emt 0:01:19]} Bxd5 {[%emt 0:00:51]} 30. f4 {[%emt 0:12:34]} Be4 {[%emt 0:01:43]} 31. Rcd2 {[%emt 0:00:07]} Rxd2 {[%emt 0:01:41]} 32. Rxd2 {[%emt 0:00:05]} gxf4 {[%emt 0:00:12]} 33. exf4 {[%emt 0:00:05]} Rc8 {[%emt 0:01:53]} 34. Rd6 {[%emt 0:03:46]} c4 {[%emt 0:00:19]} 35. Rh6 {[%emt 0:00:48]} Bh7 {[%emt 0:02:13]} 36. bxc4 {[%emt 0:00:18]} Rxc4 {[%emt 0:00:11]} 37. Rxh5 {[%emt 0:00:05]} Rc1+ {[%emt 0:02:08]} 38. Kf2 {[%emt 0:00:04]} Rc2+ {[%emt 0:00:06]} 39. Kf3 {[%emt 0:00:47]} Rxa2 {[%emt 0:00:14]} 40. f5 {[%emt 0:00:39]} Ra5 {[%emt 0:01:59]} 41. Kf4 {[%emt 0:00:15]} Rd5 {[%emt 0:01:03]} 42. Rh6 {[%emt 0:00:35]} a5 {[%emt 0:00:49]} 43. g4 {[%emt 0:01:00]} a4 {[%emt 0:00:41]} 44. Ra6 {[%emt 0:00:17]} f6 {[%emt 0:00:09]} 45. Bxf6 {[%emt 0:00:06]} Kf7 {[%emt 0:00:17]} 46. Be5 {[%emt 0:00:29]} 1-0

[Event "44th Indian Team Championship 2025"]
[Site "Gujarat"]
[Date "2025.03.06"]
[Round "2.3"]
[White "Anadkat Kartavya"]
[Black "Aronyak Ghosh"]
[Result "0-1"]
[Annotator "TA"]
[ECO "B12"]
[WhiteElo "2175"]
[BlackElo "2530"]
[PlyCount "78"]
[EventDate "2025.03.03"]
[EventCountry "IND"]
[SourceTitle "playchess.com"]
[Source "ChessBase"]
[SourceQuality "1"]
[TimeControl "5400+30"]

{[%evp 9,78,4,27,22,6,6,16,12,11,0,0,0,3,0,12,0,14,9,38,0,0,0,6,0,2,0,-9,-18,-18,-27,-29,-31,-33,-27,-19,-42,-38,-86,-85,-86,-82,-73,-69,-67,-54,-67,-67,-67,-67,-62,-32,-63,-53,-103,-106,-297,-288,-310,-312,-314,-317,-491,-531,-507,-519,-508,-511,-515,-502,-479,-490]} 1. e4 {[%emt 0:08:44]} c6 {[%emt 0:01:20]} 2. d4 {[%emt 0:00:07]} d5 {[%emt 0:00:05]} 3. e5 {[%emt 0:00:04]} Bf5 {[%emt 0:00:31]} 4. h4 {[%emt 0:00:07]} h5 {[%emt 0:01:17]} 5. Bd3 {[%emt 0:00:21]} Qd7 {[%emt 0:03:15]} 6. Ne2 {[%emt 0:09:47] B12: Caro-Kann: Advance Variation.} Bxd3 {[%emt 0:08:07]} 7. Qxd3 {[%emt 0:00:35]} e6 {[%emt 0:01:35]} 8. Nd2 {[%emt 0:01:10][%cal Bb1d2,Bd2f3,Bf3d4][%mdl 32] The position is equal.} c5 {[%emt 0:01:27]} 9. c3 {[%emt 0:01:59]} Nc6 {[%emt 0:02:00]} 10. Nf3 {[%emt 0:00:10]} cxd4 $146 {[%emt 0:01:41]} (10... Nge7 11. O-O Nf5 12. Bg5 c4 13. Qc2 b5 14. b3 Rc8 15. Rad1 cxb3 16. axb3 Be7 {½-½ Grischuk,A (2675)-Abdusattorov,N (2740) Wch Rapid New York 2024 (9)}) 11. Nexd4 {[%emt 0:00:33]} Nge7 {[%emt 0:02:24]} 12. Bg5 {[%emt 0:05:49]} Nxd4 {[%emt 0:03:41]} 13. Nxd4 {[%emt 0:00:44]} Ng6 {[%emt 0:08:04]} 14. Nf3 {[%emt 0:01:41]} Rc8 {[%emt 0:02:12]} 15. O-O {[%emt 0:04:25]} Be7 {[%emt 0:01:46]} 16. Bxe7 {[%emt 0:06:20]} Nxe7 {[%emt 0:02:33]} 17. g3 {[%emt 0:04:48]} Nf5 {[%emt 0:02:24]} 18. Nd4 {[%emt 0:03:57]} Nxd4 {[%emt 0:01:06]} 19. cxd4 {[%emt 0:04:50]} O-O {[%emt 0:00:48]} 20. Rfc1 {[%emt 0:01:26]} Rc6 {[%emt 0:05:13]} 21. Rxc6 {[%emt 0:23:44]} Qxc6 $15 {[%emt 0:00:20][%mdl 4096] Endgame KQR-KQR} 22. Qe2 {[%emt 0:06:09]} Qa4 {[%emt 0:03:23]} 23. Qd2 {[%emt 0:05:39]} (23. Qd1 $15 {should be considered.} Qxd1+ 24. Rxd1) 23... Rc8 $17 {[%emt 0:01:41]} 24. b3 {[%emt 0:00:02] [#]} Qc6 {[%emt 0:00:34]} 25. Rd1 {[%emt 0:00:02]} Qc2 {[%emt 0:01:20]} 26. Kf1 $1 {[%emt 0:03:43]} Qe4 {[%emt 0:02:52] Hoping for ...Rc2. Black is more active.} 27. Qd3 {[%emt 0:02:15]} Qxd3+ {[%emt 0:01:39]} (27... Qh1+ 28. Ke2 Qg2 29. Rd2 $11) 28. Rxd3 $15 {[%emt 0:00:03] KR-KR} Rc2 {[%emt 0:00:06]} 29. a4 {[%emt 0:00:53]} Kh7 {[%emt 0:01:11]} 30. Kg2 {[%emt 0:01:37]} Kg6 {[%emt 0:00:29]} 31. Kf3 {[%emt 0:01:52]} (31. Rf3 $15) 31... Kf5 {[%emt 0:00:43]} 32. Kg2 $2 {[%emt 0:01:27] White does not recover from this.} (32. Ke3 $17) 32... Ke4 $19 {[%emt 0:04:40]} 33. Rf3 {[%emt 0:00:21]} Rc7 {[%emt 0:00:06]} (33... Kxd4 34. Rxf7 Kc3 (34... Kxe5 35. Rxb7 d4 36. Rxa7 $16) 35. g4 $17 (35. Rxb7 d4 $11)) 34. Rf4+ {[%emt 0:00:32]} Kd3 {[%emt 0:00:05]} 35. f3 {[%emt 0:00:48]} (35. g4 {keeps fighting.} g6 36. gxh5 gxh5 37. a5) 35... a5 {[%emt 0:01:03] Black is clearly winning.} 36. g4 {[%emt 0:00:11]} Ke3 {[%emt 0:00:14]} 37. Kg3 {[%emt 0:00:10] [#]} g5 $1 {[%emt 0:00:10][%mdl 512]} 38. Rf6 {[%emt 0:01:17] [#]} gxh4+ $1 {[%emt 0:00:05]} (38... Kxd4 39. gxh5 gxh4+ (39... Kxe5 $2 {too greedy.} 40. hxg5 Kd6 41. h6 $18) 40. Kxh4 $11) 39. Kxh4 {[%emt 0:00:04]} hxg4 {[%emt 0:00:04] Weighted Error Value: White=0.22 (precise) /Black=0.04 (flawless)   Loses game:     	White=1     	---        Mistake:       	White=3     	---        Inaccurate:     	White=2     	Black=2      OK:         	White=6     	Black=19     Best:        	---       	Black=3      Strong:       	White=1     	Black=1} ({Worse is} 39... Kxd4 40. gxh5 Kxe5 41. Kg5 $11) 0-1

[Event "44th Indian Team Championship 2025"]
[Site "Gujarat"]
[Date "2025.03.06"]
[Round "2.4"]
[White "Gusain, Himal"]
[Black "Makwana Devam"]
[Result "1-0"]
[Annotator "TA"]
[ECO "D30"]
[WhiteElo "2528"]
[BlackElo "1817"]
[PlyCount "91"]
[EventDate "2025.03.03"]
[EventCountry "IND"]
[SourceTitle "playchess.com"]
[Source "ChessBase"]
[SourceQuality "1"]
[TimeControl "5400+30"]

{[%evp 11,91,22,27,28,43,26,108,54,43,69,98,123,97,83,142,147,165,102,85,49,50,48,48,46,41,8,142,101,144,147,142,139,208,199,201,198,193,156,156,138,190,160,167,163,178,171,181,147,144,157,335,314,389,374,529,358,438,414,521,521,521,495,496,502,516,482,457,456,716,706,1180,1027,924,917,1920,1776,6170,6119,5306,5306,5306,5185]} 1. d4 {[%emt 0:00:09]} d5 {[%emt 0:00:46]} 2. c4 {[%emt 0:00:13]} c6 {[%emt 0:00:06]} 3. Nf3 {[%emt 0:00:07]} Nf6 {[%emt 0:00:05]} 4. e3 {[%emt 0:00:06]} e6 {[%emt 0:00:06]} 5. Bd3 {[%emt 0:00:11]} dxc4 {[%emt 0:00:53]} 6. Bxc4 {[%emt 0:00:03]} b5 {[%emt 0:00:06]} 7. Bd3 {[%emt 0:00:18] D30: Queen's Gambit Declined: Systems without Nc3.} Nbd7 {[%emt 0:01:26] is the legacy move (7...a6).} 8. O-O {[%emt 0:01:16]} Bd6 {[%emt 0:03:32] [#]} (8... Bb7 $11) 9. a4 {[%emt 0:02:15]} (9. e4 $1 $16 {[%cal Re4e5]}) 9... b4 $14 {[%emt 0:06:12]} 10. e4 {[%emt 0:00:14]} e5 {[%emt 0:02:38]} 11. Nbd2 {[%emt 0:01:14]} O-O {[%emt 0:06:43]} 12. Nc4 {[%emt 0:02:20]} Qe7 {[%emt 0:00:10]} (12... Bc7 $142) 13. Re1 $16 {[%emt 0:08:33]} c5 {[%emt 0:10:16]} 14. Nxd6 {[%emt 0:04:55]} (14. d5 $18) 14... Qxd6 {[%emt 0:00:11]} 15. dxe5 {[%emt 0:00:22]} Nxe5 {[%emt 0:00:55]} 16. Nxe5 {[%emt 0:00:10]} Qxe5 {[%emt 0:00:17]} 17. f4 {[%emt 0:00:07]} Qe7 $146 {[%emt 0:08:29][%cal Oc5c4]} (17... Qd4+ 18. Be3 Qxb2 19. Re2 Qc3 20. Rc1 Qa3 21. Ra1 Qc3 {½-½ Kretchetov,A (2152)-Aarav,D (2377) Saint Louis 1000 GM GM 01 2023 (6.2)}) 18. e5 {[%emt 0:01:12]} Re8 {[%emt 0:06:05]} (18... Ng4 $11 {remains equal.}) 19. Qe2 {[%emt 0:04:22] White is more active.} Ng4 {[%emt 0:04:24][%cal Oc5c4] [#]} 20. h3 $1 $36 {[%emt 0:04:58][%mdl 2048] White is really pushing.} Nh6 {[%emt 0:01:55]} (20... c4 21. Bxc4 Nh6 22. Qf2) 21. Be3 {[%emt 0:00:13]} Bf5 {[%emt 0:07:57]} (21... Nf5 $16) 22. Ba6 {[%emt 0:05:03]} Bc8 {[%emt 0:05:03]} 23. Bb5 {[%emt 0:01:32]} Bd7 {[%emt 0:02:48]} 24. Bxd7 {[%emt 0:08:15]} Qxd7 {[%emt 0:00:05]} 25. Bxc5 {[%emt 0:00:06]} Rac8 {[%emt 0:00:22]} (25... a5 $16 26. Qe4 Rac8) 26. Qf2 {[%emt 0:08:27][%cal Oe1d1]} (26. Bxb4 $2 {loses.} Qd4+ 27. Qe3 Qxb4 28. Qxa7 Qxf4 $19) 26... a5 {[%emt 0:03:06]} 27. Red1 {[%emt 0:00:23]} Qe6 {[%emt 0:03:18]} 28. Bb6 {[%emt 0:00:46]} Qb3 {[%emt 0:02:31]} 29. Rd2 {[%emt 0:00:11]} Nf5 {[%emt 0:01:56]} 30. Bxa5 {[%emt 0:01:07]} h6 $2 {[%emt 0:06:27] This move loses the game for Black.} (30... Ra8 $16) 31. Bb6 $18 {[%emt 0:00:59]} Rc4 {[%emt 0:00:48]} 32. a5 {[%emt 0:00:38]} Rec8 {[%emt 0:01:04]} (32... Ng3 $142) 33. Rad1 {[%emt 0:03:54]} Rc1 {[%emt 0:02:06]} 34. Qf3 {[%emt 0:00:34]} Qa4 {[%emt 0:01:19]} 35. Kh2 {[%emt 0:01:34] White is clearly winning.} b3 {[%emt 0:05:45]} 36. Qg4 {[%emt 0:00:26]} g6 {[%emt 0:00:42] [#]} 37. e6 $1 {[%emt 0:00:15]} Rxd1 {[%emt 0:01:08]} 38. exf7+ {[%emt 0:00:41]} Kxf7 {[%emt 0:00:07]} 39. Rxd1 {[%emt 0:00:06]} Rc2 {[%emt 0:01:05]} (39... Qc6 $142 40. Qe2 Kg8) 40. Qf3 {[%emt 0:00:30] Strongly threatening Qd5+.} ({Less strong is} 40. Rd8 Qc6 $14) 40... Rc6 {[%emt 0:01:51]} 41. Qd5+ {[%emt 0:02:30]} Re6 {[%emt 0:01:19]} 42. Re1 {[%emt 0:01:09]} Qxf4+ {[%emt 0:00:13]} 43. Kg1 {[%emt 0:00:10]} Qd6 {[%emt 0:01:27]} 44. Qxe6+ {[%emt 0:00:14]} Qxe6 {[%emt 0:00:04]} 45. Rxe6 {[%emt 0:00:06]} Kxe6 {[%emt 0:00:04]} 46. a6 {[%emt 0:00:07] Weighted Error Value: White=0.22 (precise) /Black=0.64  Loses game:     	---       	Black=1      Mistake:       	White=2     	Black=7      Inaccurate:     	White=3     	Black=3      OK:         	White=15    	Black=9      Best:        	White=3     	---} 1-0

[Event "44th Indian Team Championship 2025"]
[Site "Gujarat"]
[Date "2025.03.06"]
[Round "2.5"]
[White "Vignesh N R"]
[Black "Sriram, Jha"]
[Result "1/2-1/2"]
[Annotator "RC"]
[ECO "B45"]
[WhiteElo "2537"]
[BlackElo "2322"]
[PlyCount "115"]
[EventDate "2025.03.03"]
[EventCountry "IND"]
[SourceTitle "playchess.com"]
[Source "ChessBase"]
[SourceQuality "1"]
[TimeControl "5400+30"]

1. e4 {[%emt 0:00:35]} c5 {[%emt 0:00:59]} 2. Nf3 {[%emt 0:00:24]} e6 {[%emt 0:00:13]} 3. d4 {[%emt 0:02:20]} cxd4 {[%emt 0:00:06]} 4. Nxd4 {[%emt 0:00:03]} Nf6 {[%emt 0:01:08]} 5. Nc3 {[%emt 0:00:06]} Nc6 {[%emt 0:00:06]} 6. a3 {[%emt 0:02:08]} d5 {[%emt 0:00:10]} 7. Bb5 {[%emt 0:00:47]} Bd7 {[%emt 0:00:02]} 8. exd5 {[%emt 0:00:08]} exd5 {[%emt 0:00:02]} 9. O-O {[%emt 0:00:10]} Be7 {[%emt 0:00:03]} 10. Be3 {[%emt 0:00:07]} O-O {[%emt 0:00:11]} 11. Be2 {[%emt 0:00:06]} Re8 {[%emt 0:18:48]} 12. Re1 {[%emt 0:00:44]} a6 {[%emt 0:13:18]} 13. h3 {[%emt 0:03:02]} h6 {[%emt 0:07:29]} 14. Nf3 {[%emt 0:09:00]} Be6 {[%emt 0:03:35]} 15. Bd3 {[%emt 0:06:57]} Rc8 {[%emt 0:14:36]} 16. Ne2 {[%emt 0:02:01]} Bd6 {[%emt 0:08:48]} 17. Ned4 {[%emt 0:05:14]} Bd7 {[%emt 0:01:39]} 18. Nxc6 {[%emt 0:01:33]} Bxc6 {[%emt 0:00:08]} 19. Nd4 {[%emt 0:07:46]} Bd7 {[%emt 0:02:03]} 20. Qf3 {[%emt 0:01:18]} Be5 {[%emt 0:02:16]} 21. c3 {[%emt 0:06:12]} Qc7 {[%emt 0:03:17]} 22. Rad1 {[%emt 0:08:03]} b5 {[%emt 0:01:42]} 23. Bb1 {[%emt 0:02:46]} a5 {[%emt 0:00:47]} 24. Ba2 {[%emt 0:01:00]} Qb7 {[%emt 0:01:16]} 25. Nb3 {[%emt 0:06:15]} Qa8 {[%emt 0:00:25]} 26. Nc5 {[%emt 0:02:11]} Bc6 {[%emt 0:00:22]} 27. Qf5 {[%emt 0:05:55]} Qb8 {[%emt 0:03:35]} 28. Bd4 {[%emt 0:03:55]} Bxd4 {[%emt 0:00:32]} 29. cxd4 {[%emt 0:00:07]} Rxe1+ {[%emt 0:02:32]} 30. Rxe1 {[%emt 0:00:02]} Re8 {[%emt 0:00:13]} 31. Rxe8+ {[%emt 0:01:15]} Qxe8 {[%emt 0:00:13]} 32. Qe5 {[%emt 0:00:26]} Qd8 {[%emt 0:04:35]} 33. Ne6 {[%emt 0:00:23]} Qe8 {[%emt 0:02:02]} 34. Nc5 {[%emt 0:01:50]} Qd8 {[%emt 0:00:07]} 35. Qe1 {[%emt 0:00:51]} Qc7 {[%emt 0:00:26]} 36. Nb3 {[%emt 0:01:21]} a4 {[%emt 0:00:32]} 37. Nc5 {[%emt 0:00:40]} Qf4 {[%emt 0:00:34]} 38. Qc3 {[%emt 0:03:19]} Qf5 {[%emt 0:01:23]} 39. Qc1 {[%emt 0:01:06]} Be8 {[%emt 0:02:01]} 40. Bb1 {[%emt 0:00:18]} Qc8 {[%emt 0:00:05]} 41. Qe3 {[%emt 0:00:46]} Qb8 {[%emt 0:01:55]} 42. Bd3 {[%emt 0:01:13]} Qb6 {[%emt 0:00:47]} 43. Qe1 {[%emt 0:02:01]} Qd6 {[%emt 0:00:11]} 44. Qe3 {[%emt 0:01:29]} Qb6 {[%emt 0:00:06]} 45. Bc2 {[%emt 0:00:05]} Qd6 {[%emt 0:01:44]} 46. Nd3 {[%emt 0:00:18]} Qc7 {[%emt 0:00:15]} 47. Nb4 {[%emt 0:00:34]} Kf8 {[%emt 0:01:01]} 48. Bd1 {[%emt 0:01:15]} Bd7 {[%emt 0:00:55]} 49. Be2 {[%emt 0:00:14]} Qb6 {[%emt 0:01:57]} 50. Qe5 {[%emt 0:00:54]} Be6 {[%emt 0:00:54]} 51. Bf3 {[%emt 0:00:22]} Nd7 {[%emt 0:01:03]} 52. Qe3 {[%emt 0:00:28]} Nf6 {[%emt 0:00:35]} 53. Qc3 {[%emt 0:00:09]} Qd6 {[%emt 0:01:19]} 54. Nd3 {[%emt 0:02:18]} Ne4 {[%emt 0:00:38]} 55. Qa5 {[%emt 0:00:22]} Qb8 {[%emt 0:00:43]} 56. Ne5 {[%emt 0:07:00]} Kg8 {[%emt 0:00:08]} 57. Be2 {[%emt 0:02:51]} Qc8 {[%emt 0:00:54]} 58. Qe1 {[%emt 0:01:58]} 1/2-1/2

[Event "44th Indian Team Championship 2025"]
[Site "Gujarat"]
[Date "2025.03.06"]
[Round "2.6"]
[White "Sharma, Dinesh K."]
[Black "Das, Sayantan"]
[Result "1/2-1/2"]
[Annotator "RC"]
[ECO "D35"]
[WhiteElo "2167"]
[BlackElo "2428"]
[PlyCount "65"]
[EventDate "2025.03.03"]
[EventCountry "IND"]
[SourceTitle "playchess.com"]
[Source "ChessBase"]
[SourceQuality "1"]
[TimeControl "5400+30"]

1. d4 {[%emt 0:00:06]} Nf6 {[%emt 0:00:29]} 2. c4 {[%emt 0:00:14]} e6 {[%emt 0:00:13]} 3. Nc3 {[%emt 0:00:17]} d5 {[%emt 0:00:26]} 4. cxd5 {[%emt 0:02:20]} exd5 {[%emt 0:00:06]} 5. Bf4 {[%emt 0:00:15]} c5 {[%emt 0:06:20]} 6. e3 {[%emt 0:04:56]} Nc6 {[%emt 0:05:28]} 7. dxc5 {[%emt 0:02:18]} Bxc5 {[%emt 0:01:54]} 8. Nf3 {[%emt 0:04:16]} O-O {[%emt 0:04:22]} 9. Be2 {[%emt 0:00:52]} h6 {[%emt 0:05:13]} 10. O-O {[%emt 0:00:30]} a6 {[%emt 0:00:30]} 11. Rc1 {[%emt 0:00:30]} Ba7 {[%emt 0:00:30]} 12. Ne5 {[%emt 0:00:30]} Ne7 {[%emt 0:00:30]} 13. Nf3 {[%emt 0:01:38]} Nc6 {[%emt 0:14:59]} 14. Ne5 {[%emt 0:10:17]} Ne7 {[%emt 0:05:47]} 15. Nf3 {[%emt 0:00:34]} Be6 {[%emt 0:01:59]} 16. Nd4 {[%emt 0:04:05]} Qd7 {[%emt 0:07:04]} 17. Be5 {[%emt 0:02:36]} Ne8 {[%emt 0:03:52]} 18. Na4 {[%emt 0:07:17]} Rc8 {[%emt 0:07:02]} 19. Rxc8 {[%emt 0:02:22]} Qxc8 {[%emt 0:00:46]} 20. Qd2 {[%emt 0:04:52]} Qd7 {[%emt 0:03:30]} 21. Qc2 {[%emt 0:06:28]} Ng6 {[%emt 0:08:10]} 22. Bg3 {[%emt 0:04:25]} Nf6 {[%emt 0:02:16]} 23. Nc5 {[%emt 0:03:47]} Bxc5 {[%emt 0:00:16]} 24. Qxc5 {[%emt 0:00:02]} Ne4 {[%emt 0:01:58]} 25. Qb4 {[%emt 0:04:00]} Rc8 {[%emt 0:04:36]} 26. Rd1 {[%emt 0:01:41]} Nxg3 {[%emt 0:01:30]} 27. hxg3 {[%emt 0:00:14]} Ne5 {[%emt 0:01:08]} 28. Nf3 {[%emt 0:13:09]} Nc6 {[%emt 0:02:00]} 29. Qb6 {[%emt 0:00:35]} Qc7 {[%emt 0:01:47]} 30. Qxc7 {[%emt 0:01:36]} Rxc7 {[%emt 0:00:02]} 31. Rc1 {[%emt 0:01:16]} Rc8 {[%emt 0:01:09]} 32. Nd4 {[%emt 0:03:42]} Nxd4 {[%emt 0:00:53]} 33. Rxc8+ {[%emt 0:00:09]} 1/2-1/2